bitfinex/quotes_BTCUSD_20250206
["timestamp","ask_amount","ask_price","bid_price","bid_amount"]
[1738805875857,0.30908703,96935.0,96934.0,0.13455365]
[1738805876170,0.30908703,96935.0,96934.0,0.03205]
[1738805876403,0.154758,96925.0,96924.0,0.0001068]
[1738805876520,0.154758,96925.0,96924.0,0.10261045]
[1738805876719,0.15911336,96925.0,96924.0,0.13466855]
[1738805880215,0.00435536,96925.0,96924.0,0.13466855]
[1738805880671,0.154758,96926.0,96924.0,0.13466855]
[1738805880894,0.00435463,96925.0,96924.0,0.0321649]
[1738805881124,0.00435463,96925.0,96924.0,0.0001068]
[1738805882186,0.00435463,96925.0,96924.0,0.03216824]
[1738805883053,0.00435463,96925.0,96924.0,0.13467189]
[1738805883753,0.154755,96928.0,96924.0,0.13467189]
[1738805884001,0.00435454,96925.0,96924.0,0.03216824]
[1738805884220,0.14251727,96950.0,96924.0,0.0001068]
[1738805884449,0.154744,96935.0,96926.0,0.154757]
[1738805884674,0.01944687,96943.0,96924.0,0.0001068]
[1738805884675,0.14251727,96940.0,96925.0,0.03205624]
[1738805884933,0.154743,96935.0,96926.0,0.18681224]
[1738805885129,0.154743,96935.0,96927.0,0.03205624]
[1738805885464,0.154743,96935.0,96927.0,0.154755]
[1738805885884,0.154743,96935.0,96928.0,0.03205624]
[1738805886198,0.14251727,96940.0,96929.0,0.10250365]
[1738805886402,0.154739,96938.0,96930.0,0.03205624]
[1738805886603,0.154739,96938.0,96931.0,0.10250365]
[1738805886804,0.154739,96938.0,96932.0,0.03205624]
[1738805887015,0.14251727,96940.0,96933.0,0.10250365]
[1738805887214,0.14251727,96940.0,96934.0,0.03205624]
[1738805887415,0.29725227,96940.0,96935.0,0.10250365]
[1738805887618,0.14251727,96940.0,96935.0,0.10250365]
[1738805887824,0.14251727,96940.0,96936.0,0.03203179]
[1738805888024,0.29725227,96940.0,96937.0,0.10250365]
[1738805888220,0.154737,96939.0,96937.0,0.10250365]
[1738805889098,0.03615545,96938.0,96924.0,0.0001068]
[1738805889380,0.03615545,96938.0,96925.0,0.1345346]
[1738805889381,0.154746,96933.0,96925.0,0.1345346]
[1738805889791,0.154746,96933.0,96926.0,0.03203095]
[1738805889997,0.154746,96933.0,96927.0,0.10250365]
[1738805890214,0.154746,96933.0,96928.0,0.03203095]
[1738805890420,0.14251727,96940.0,96929.0,0.10250365]
[1738805890697,0.15474,96937.0,96930.0,0.03203095]
[1738805890918,0.34883027,96940.0,96931.0,0.10250365]
[1738805891158,0.00435795,96936.0,96932.0,0.03203095]
[1738805891375,0.15474,96937.0,96933.0,0.10250365]
[1738805891574,0.00435795,96935.0,96934.0,0.03203095]
[1738805891794,0.00435795,96935.0,96934.0,0.1345346]
[1738805891980,0.154741,96936.0,96934.0,0.1345346]
[1738805892204,0.00435795,96935.0,96934.0,0.10250365]
[1738805892432,0.00435795,96935.0,96934.0,0.28927536]
[1738805892629,0.0002245,96943.0,96934.0,0.28927536]
[1738805892830,0.0002245,96943.0,96938.0,0.154737]
[1738805893030,0.00436221,96942.0,96939.0,0.28926636]
[1738805893235,0.00436221,96942.0,96940.0,0.03202771]
[1738805893406,0.0002245,96943.0,96941.0,0.10250365]
[1738805893690,0.0002245,96943.0,96942.0,0.18675871]
[1738805893886,0.0002245,96943.0,96942.0,0.28926236]
[1738805894338,0.0002245,96943.0,96942.0,0.03202771]
[1738805894526,0.23955785,96943.0,96925.0,0.03202771]
[1738805894761,0.154757,96926.0,96924.0,0.0001068]
[1738805894937,0.15,96934.0,96925.0,0.03203013]
[1738805895136,0.154751,96930.0,96925.0,0.03203013]
[1738805895458,0.154749,96932.0,96926.0,0.10250365]
[1738805895577,0.154749,96931.0,96926.0,0.10250365]
[1738805895793,0.154749,96931.0,96927.0,0.03203013]
[1738805896147,0.154749,96931.0,96928.0,0.10250365]
[1738805896373,0.154749,96931.0,96929.0,0.03203013]
[1738805896570,0.154749,96931.0,96929.0,0.13453378]
[1738805896774,0.154749,96931.0,96930.0,0.03203013]
[1738805897295,0.14251727,96935.0,96930.0,0.13453378]
[1738805897462,0.154747,96933.0,96931.0,0.13453378]
[1738805897668,0.154747,96933.0,96932.0,0.03203013]
[1738805897812,0.154747,96933.0,96932.0,0.13453378]
[1738805900986,0.05584678,96943.0,96932.0,0.13453378]
[1738805901256,0.154741,96936.0,96933.0,0.13453378]
[1738805901390,0.05584678,96943.0,96934.0,0.03203013]
[1738805901591,0.154741,96936.0,96934.0,0.03203013]
[1738805901901,0.00436284,96935.0,96934.0,0.03203013]
[1738805902715,0.02348992,96935.0,96934.0,0.03203013]
[1738805903273,0.00436284,96935.0,96934.0,0.03203013]
[1738805903623,0.08326284,96935.0,96934.0,0.03203013]
[1738805903823,0.154757,96926.0,96924.0,0.0001068]
[1738805904048,0.154757,96926.0,96925.0,0.13453378]
[1738805905379,0.15,96933.0,96925.0,0.13453378]
[1738805905597,0.154752,96930.0,96926.0,0.03203013]
[1738805905900,0.15,96933.0,96927.0,0.10250365]
[1738805906089,0.00436061,96929.0,96928.0,0.03203013]
[1738805906262,0.154753,96929.0,96928.0,0.13453378]
[1738805906461,0.15911361,96929.0,96928.0,0.13453378]
[1738805908661,0.00436061,96929.0,96928.0,0.13453378]
[1738805908836,0.15,96933.0,96928.0,0.13453378]
[1738805909040,0.15475,96930.0,96929.0,0.13453378]
[1738805909218,0.00435876,96930.0,96929.0,0.13453378]
[1738805913719,0.07298089,96930.0,96929.0,0.03203013]
[1738805913895,0.15435876,96930.0,96925.0,0.03213703]
[1738805914240,0.206338,96928.0,96926.0,0.03206846]
[1738805914392,0.0472,96927.0,96926.0,0.03206846]
[1738805914599,0.05155668,96927.0,96926.0,0.03206846]
[1738805915196,0.20155668,96927.0,96926.0,0.03206846]
[1738805915422,0.20155668,96927.0,96925.0,0.0001069]
[1738805915626,0.425157,96926.0,96925.0,0.0001069]
[1738805916026,0.42951191,96926.0,96925.0,0.0001069]
[1738805918330,0.35411191,96926.0,96925.0,0.0001069]
[1738805925535,0.42951191,96926.0,96925.0,0.0001069]
[1738805925732,0.51475391,96926.0,96925.0,0.0001069]
[1738805926560,0.61725756,96926.0,96925.0,0.0001069]
[1738805926720,0.94235756,96926.0,96925.0,0.0001069]
[1738805927135,0.94235756,96926.0,96917.0,0.0001067]
[1738805927136,0.16477,96918.0,96917.0,0.0001067]
[1738805927338,0.98537095,96918.0,96917.0,0.0001067]
[1738805927556,0.98971104,96918.0,96917.0,0.0001067]
[1738805928806,1.00754312,96918.0,96917.0,0.0001067]
[1738805929315,0.99754312,96918.0,96917.0,0.0001067]
[1738805929599,1.00754312,96918.0,96917.0,0.0001067]
[1738805930633,1.00954312,96918.0,96917.0,0.0001067]
[1738805931271,0.99954312,96918.0,96917.0,0.0001067]
[1738805931672,1.00954312,96918.0,96917.0,0.0001067]
[1738805932512,0.88908582,96918.0,96917.0,0.0001067]
[1738805933482,0.87811223,96918.0,96917.0,0.0001067]
[1738805933888,0.87611223,96918.0,96917.0,0.0001067]
[1738805934881,0.86767223,96918.0,96917.0,0.0001067]
[1738805935086,0.87611223,96918.0,96917.0,0.0001067]
[1738805936415,0.97861588,96918.0,96917.0,0.0001067]
[1738805937420,0.97017588,96918.0,96917.0,0.0001067]
[1738805937564,0.97861588,96918.0,96917.0,0.0001067]
[1738805938366,0.87611223,96918.0,96917.0,0.0001067]
[1738805939394,0.68986858,96918.0,96917.0,0.0001067]
[1738805939596,0.64106858,96918.0,96917.0,0.0001067]
[1738805940561,0.31596858,96918.0,96917.0,0.0001067]
[1738805940923,0.30911009,96918.0,96917.0,0.0001067]
[1738805941940,0.00434009,96918.0,96917.0,0.0001067]
[1738805942105,0.15477,96918.0,96917.0,0.0001067]
[1738805942244,0.15910122,96918.0,96917.0,0.0001067]
[1738805943806,0.30910122,96918.0,96917.0,0.0001067]
[1738805944957,0.00433122,96918.0,96917.0,0.0001067]
[1738805945276,0.00022428,96924.0,96917.0,0.25738035]
[1738805945435,0.00433248,96918.0,96917.0,0.1548767]
[1738805945802,0.00022428,96924.0,96917.0,0.1548767]
[1738805945998,0.00022428,96924.0,96917.0,0.0001067]
[1738805946291,0.15434058,96923.0,96918.0,0.10250365]
[1738805946477,0.15434058,96923.0,96919.0,0.154768]
[1738805946681,0.15434058,96923.0,96920.0,0.10250365]
[1738805947241,0.00434058,96923.0,96920.0,0.10250365]
[1738805950752,0.00434058,96923.0,96920.0,0.25726965]
[1738805950901,0.00434058,96923.0,96921.0,0.230363]
[1738805951100,0.00022428,96924.0,96923.0,0.154762]
[1738805951302,0.00022428,96924.0,96923.0,0.28922894]
[1738805955810,0.00022428,96924.0,96923.0,0.41232894]
[1738805957088,0.00022428,96924.0,96923.0,0.73262894]
[1738805964837,0.00022428,96924.0,96923.0,0.75562894]
[1738805965037,0.00022428,96924.0,96923.0,0.7762912]
[1738805965662,0.00022428,96924.0,96923.0,0.776398]
[1738805967096,0.00022428,96924.0,96923.0,0.786398]
[1738805975137,0.00022428,96924.0,96923.0,1.328298]
[1738805975339,0.0002245,96943.0,96926.0,0.01]
[1738805975521,0.0002245,96943.0,96942.0,0.25723465]
[1738805975698,0.0002245,96943.0,96942.0,0.28919794]
[1738805980755,0.0002245,96943.0,96942.0,0.60949794]
[1738805984521,0.0002245,96943.0,96942.0,0.6305429]
[1738805985480,0.0002245,96943.0,96942.0,0.6535429]
[1738805993702,0.0002245,96943.0,96942.0,0.7338429]
[1738806000709,0.0799245,96943.0,96942.0,0.45476694]
[1738806000880,0.0799245,96943.0,96942.0,0.13446694]
[1738806001093,0.08431198,96943.0,96942.0,0.13446694]
[1738806002250,0.00461198,96943.0,96942.0,0.13446694]
[1738806002447,0.00461198,96943.0,96942.0,0.28919794]
[1738806002777,0.0002245,96943.0,96942.0,0.13446694]
[1738806002947,0.0820245,96943.0,96942.0,0.13446694]
[1738806003152,0.13501083,96943.0,96942.0,0.13446694]
[1738806014703,0.28974083,96943.0,96942.0,0.13446694]
[1738806015345,0.13501083,96943.0,96942.0,0.13446694]
[1738806015496,0.28974083,96943.0,96942.0,0.13446694]
[1738806016666,0.2774,96942.0,96928.0,0.09189945]
[1738806016835,0.432152,96929.0,96928.0,0.09189945]
[1738806016988,0.43652765,96929.0,96928.0,0.09189945]
[1738806018417,0.154758,96925.0,96910.0,0.0001067]
[1738806018670,0.15912632,96925.0,96910.0,0.0001067]
[1738806018980,0.27972632,96925.0,96910.0,0.0001067]
[1738806027051,0.27972632,96925.0,96910.0,0.1548887]
[1738806027728,0.27972632,96925.0,96910.0,0.0001067]
[1738806031388,0.42972632,96925.0,96910.0,0.0001067]
[1738806032238,0.54222997,96925.0,96910.0,0.0001067]
[1738806033071,0.65082997,96925.0,96910.0,0.0001067]
[1738806033248,0.54222997,96925.0,96910.0,0.0001067]
[1738806033447,0.64473362,96925.0,96910.0,0.0001067]
[1738806034519,0.64673362,96925.0,96910.0,0.0001067]
[1738806036524,0.6469579,96925.0,96910.0,0.0001067]
[1738806037277,0.9720579,96925.0,96910.0,0.0001067]
[1738806038507,0.89255425,96925.0,96910.0,0.0001067]
[1738806039649,0.01,96918.0,96910.0,0.0001067]
[1738806039860,0.87501286,96918.0,96910.0,0.0001067]
[1738806045412,0.88537645,96918.0,96910.0,0.0001067]
[1738806045716,0.9878801,96918.0,96910.0,0.0001067]
[1738806056693,0.88537645,96918.0,96910.0,0.0001067]
[1738806059668,0.90837645,96918.0,96917.0,7e-07]
[1738806061096,0.91037645,96918.0,96917.0,7e-07]
[1738806063431,0.314777,96913.0,96912.0,6.74e-05]
[1738806063633,0.44460609,96913.0,96912.0,6.74e-05]
[1738806063877,0.87220974,96913.0,96912.0,6.74e-05]
[1738806064087,0.63420244,96913.0,96912.0,6.74e-05]
[1738806064301,0.64264244,96913.0,96912.0,6.74e-05]
[1738806064726,0.64268887,96913.0,96912.0,6.74e-05]
[1738806066882,0.63424887,96913.0,96912.0,6.74e-05]
[1738806067088,0.63424887,96913.0,96912.0,0.0820674]
[1738806067089,0.48424887,96913.0,96912.0,0.0820674]
[1738806067298,0.15914887,96913.0,96912.0,0.0820674]
[1738806067512,0.15914887,96913.0,96912.0,0.11422442]
[1738806067732,0.15914887,96913.0,96912.0,0.0820674]
[1738806067935,0.15914887,96913.0,96912.0,0.11421571]
[1738806068139,0.00437187,96913.0,96912.0,0.21671936]
[1738806068769,0.06155876,96913.0,96912.0,0.21671936]
[1738806069180,0.21155876,96913.0,96912.0,0.21671936]
[1738806070726,0.21155876,96913.0,96912.0,6.74e-05]
[1738806081783,0.28955876,96913.0,96912.0,6.74e-05]
[1738806081986,0.21155876,96913.0,96912.0,6.74e-05]
[1738806082544,0.15437187,96913.0,96912.0,6.74e-05]
[1738806082981,0.00437187,96913.0,96912.0,6.74e-05]
[1738806083205,0.00437187,96913.0,96912.0,0.10257105]
[1738806083403,0.00437187,96913.0,96912.0,0.13467952]
[1738806083607,0.15437187,96913.0,96912.0,0.13467952]
[1738806084030,0.25687552,96913.0,96912.0,0.13467952]
[1738806084750,0.25687552,96913.0,96912.0,0.10257105]
[1738806084751,0.00437187,96913.0,96912.0,0.10257105]
[1738806084949,0.00437187,96913.0,96912.0,0.13467525]
[1738806085552,0.00437187,96913.0,96912.0,0.10257105]
[1738806085753,0.00437187,96913.0,96912.0,0.13466898]
[1738806085947,0.07766217,96913.0,96912.0,0.10257105]
[1738806086389,0.00437187,96913.0,96912.0,0.13466807]
[1738806086598,0.00437187,96913.0,96912.0,0.10257105]
[1738806088579,0.00437187,96913.0,96912.0,0.2894358]
[1738806088758,0.00437187,96913.0,96912.0,0.4186358]
[1738806088964,4.643e-05,96913.0,96912.0,0.4186358]
[1738806090073,4.643e-05,96913.0,96912.0,0.4416358]
[1738806090281,0.00022428,96917.0,96914.0,0.023]
[1738806090547,0.0002245,96943.0,96922.0,0.229763]
[1738806090749,0.0002245,96943.0,96922.0,0.39505194]
[1738806091655,0.0002245,96943.0,96924.0,0.18776]
[1738806091799,0.0002245,96943.0,96924.0,0.40228081]
[1738806092000,0.0002245,96943.0,96942.0,0.233631]
[1738806092357,0.00456715,96943.0,96942.0,0.3682204]
[1738806092761,0.0002245,96943.0,96942.0,0.4154204]
[1738806093246,0.00028217,96943.0,96942.0,0.4154204]
[1738806093674,0.00028217,96943.0,96942.0,0.38333465]
[1738806094131,0.00028217,96943.0,96942.0,0.41526425]
[1738806094531,0.00028217,96943.0,96942.0,0.38333465]
[1738806095534,0.00028217,96943.0,96942.0,0.18140365]
[1738806095911,0.00464468,96943.0,96942.0,0.18140365]
[1738806096326,0.00464468,96943.0,96942.0,0.10250365]
[1738806096885,0.00028217,96943.0,96942.0,0.10250365]
[1738806097088,0.00028217,96943.0,96942.0,0.33346612]
[1738806097308,0.00028217,96943.0,96942.0,0.33243465]
[1738806098282,0.00028217,96943.0,96942.0,0.68612595]
[1738806098486,0.00028217,96943.0,96942.0,0.76510244]
[1738806098886,0.00028217,96943.0,96942.0,0.77510244]
[1738806100854,0.00028217,96943.0,96942.0,0.76510244]
[1738806101057,0.00028217,96943.0,96942.0,0.77510244]
[1738806102333,0.00028217,96943.0,96942.0,0.78510244]
[1738806103535,0.00028217,96943.0,96942.0,0.80318229]
[1738806105760,0.154669,96981.0,96970.0,0.154685]
[1738806105963,0.08291659,96972.0,96971.0,0.18490365]
[1738806106135,0.00439064,96980.0,96971.0,0.18490365]
[1738806106340,5.767e-05,96981.0,96977.0,0.154675]
[1738806106566,5.767e-05,96981.0,96978.0,0.10250365]
[1738806107528,0.00028195,96981.0,96979.0,0.154672]
[1738806107746,0.00028195,96981.0,96980.0,0.10250365]
[1738806108337,0.00028195,96981.0,96980.0,0.1035346]
[1738806108537,0.00028195,96981.0,96980.0,0.3582056]
[1738806108757,0.00028195,96981.0,96980.0,0.68747465]
[1738806108960,0.00028195,96981.0,96980.0,0.71699721]
[1738806110241,0.00028195,96981.0,96980.0,0.76519721]
[1738806112908,0.00028195,96981.0,96980.0,0.77569555]
[1738806114111,0.00028195,96981.0,96980.0,0.74617299]
[1738806114507,0.00028195,96981.0,96980.0,1.28807299]
[1738806114715,0.00028195,96981.0,96980.0,1.31096243]
[1738806114919,0.00028195,96981.0,96980.0,1.28807299]
[1738806116761,0.00028195,96981.0,96980.0,1.31980143]
[1738806118367,0.00028195,96981.0,96980.0,1.26160143]
[1738806118574,0.00028195,96981.0,96980.0,1.15287299]
[1738806118859,0.00028195,96981.0,96980.0,1.11937465]
[1738806119016,0.15495095,96981.0,96980.0,0.96470365]
[1738806119192,0.15495095,96981.0,96980.0,0.10250365]
[1738806119419,0.15938304,96981.0,96980.0,0.10250365]
[1738806120119,0.00471404,96981.0,96980.0,0.10250365]
[1738806120977,0.05161404,96981.0,96980.0,0.10250365]
[1738806121208,0.05161404,96981.0,96948.0,0.3203]
[1738806121209,0.154706,96958.0,96948.0,0.3203]
[1738806121387,0.14317909,96970.0,96952.0,0.154714]
[1738806121605,0.00442891,96957.0,96953.0,0.10250365]
[1738806121806,0.206237,96976.0,96956.0,0.10250365]
[1738806121986,0.2266,96979.0,96961.0,0.1547]
[1738806122184,0.2266,96979.0,96960.0,0.10250365]
[1738806122185,0.206237,96976.0,96962.0,0.10250365]
[1738806122388,0.154684,96972.0,96962.0,0.25720165]
[1738806122652,0.154685,96972.0,96962.0,0.25720165]
[1738806122843,0.15469,96968.0,96962.0,0.10250365]
[1738806123281,0.154686,96971.0,96962.0,0.10250365]
[1738806123500,0.154686,96971.0,96962.0,0.25720265]
[1738806123689,0.15,96977.0,96965.0,0.154694]
[1738806123925,0.15468,96974.0,96966.0,0.10250365]
[1738806124554,0.154682,96973.0,96966.0,0.10250365]
[1738806124810,0.14317909,96980.0,96966.0,0.10250365]
[1738806124811,0.04718195,96981.0,96966.0,0.10250365]
[1738806125038,0.20185095,96981.0,96970.0,0.154686]
[1738806125241,0.04718195,96981.0,96971.0,0.10250365]
[1738806125467,0.04718195,96981.0,96972.0,0.23815647]
[1738806125706,0.04718195,96981.0,96973.0,0.13441512]
[1738806125920,0.04718195,96981.0,96974.0,0.03191147]
[1738806126123,0.04718195,96981.0,96975.0,0.10250365]
[1738806126685,0.04718195,96981.0,96976.0,0.03193515]
[1738806126935,0.04718195,96981.0,96977.0,0.10250365]
[1738806127906,0.00028195,96981.0,96980.0,0.154671]
[1738806128161,0.00028195,96981.0,96980.0,0.3704444]
[1738806128339,0.00028195,96981.0,96980.0,0.72271344]
[1738806128742,0.0002245,96990.0,96981.0,0.033]
[1738806128942,0.0002245,96990.0,96989.0,0.25715965]
[1738806129148,0.0002245,96990.0,96989.0,0.28909844]
[1738806131141,0.0002245,96990.0,96989.0,0.13444244]
[1738806131345,0.0500245,96990.0,96989.0,0.13444244]
[1738806131701,0.05445674,96990.0,96989.0,0.13444244]
[1738806133745,0.20445674,96990.0,96980.0,0.00013978]
[1738806133949,0.154667,96982.0,96981.0,0.13445898]
[1738806134323,0.15910042,96982.0,96981.0,0.10250365]
[1738806134545,0.15910042,96982.0,96981.0,0.13446593]
[1738806135066,0.15910042,96982.0,96981.0,0.10250365]
[1738806135279,0.00443342,96982.0,96981.0,0.10250365]
[1738806135660,0.15,96987.0,96981.0,0.13447558]
[1738806135833,0.0500245,96990.0,96980.0,0.00013978]
[1738806135834,0.00443206,96982.0,96980.0,0.00013978]
[1738806136052,0.2046805,96990.0,96981.0,0.03197039]
[1738806136273,0.00443279,96989.0,96981.0,0.03197039]
[1738806136501,0.15908979,96989.0,96981.0,0.03197039]
[1738806137398,0.15909079,96989.0,96981.0,0.03197039]
[1738806137601,0.00443279,96989.0,96982.0,0.154667]
[1738806137804,0.00443279,96989.0,96983.0,0.28913904]
[1738806138161,0.00443279,96989.0,96984.0,0.03197039]
[1738806138363,0.00443279,96989.0,96985.0,0.10250365]
[1738806138622,0.00443279,96989.0,96986.0,0.03197039]
[1738806138795,0.00443279,96989.0,96987.0,0.10250365]
[1738806139001,0.00443279,96989.0,96988.0,0.03197039]
[1738806139359,0.00443279,96989.0,96988.0,0.13447404]
[1738806139749,0.0002245,96990.0,96988.0,0.13447404]
[1738806139924,0.0002245,96990.0,96989.0,0.13447404]
[1738806140341,0.0002245,96990.0,96989.0,0.28913004]
[1738806144256,0.0002245,96990.0,96989.0,0.60943004]
[1738806151696,0.0002245,96990.0,96989.0,0.71053004]
[1738806151918,0.0002245,96990.0,96989.0,0.72053004]
[1738806152674,0.0002245,96990.0,96989.0,0.72465404]
[1738806152880,0.00022428,97008.0,97007.0,0.154628]
[1738806153118,0.00022428,97008.0,97007.0,0.2901327]
[1738806153325,0.00022428,97008.0,97007.0,0.28910204]
[1738806157061,0.00022428,97008.0,97007.0,0.63240204]
[1738806158835,0.00022428,97008.0,97007.0,0.71320204]
[1738806159042,0.00022428,97008.0,97007.0,0.73331772]
[1738806160283,0.00022428,97008.0,97007.0,0.75401726]
[1738806163216,0.00022428,97008.0,97007.0,0.91401726]
[1738806163475,0.00022428,97008.0,97007.0,1.46591726]
[1738806164732,0.00022428,97008.0,97007.0,1.51091726]
[1738806165888,0.00022428,97020.0,97014.0,0.02]
[1738806166093,0.00022428,97022.0,97014.0,0.02]
[1738806166094,5e-07,97021.0,97020.0,0.403207]
[1738806166307,5e-07,97021.0,97020.0,0.58138058]
[1738806167298,0.00022428,97078.0,97039.0,0.02]
[1738806167564,0.00022428,97078.0,97068.0,0.15453]
[1738806167725,0.00022428,97078.0,97068.0,0.36053896]
[1738806167945,0.00032984,97069.0,97068.0,0.25703365]
[1738806168555,0.00032984,97069.0,97068.0,0.28003365]
[1738806172263,0.00032984,97069.0,97068.0,0.37839685]
[1738806172615,0.00032984,97069.0,97068.0,0.41656977]
[1738806173400,0.00032984,97069.0,97068.0,0.40656977]
[1738806173979,0.00032984,97069.0,97068.0,0.42668456]
[1738806174355,0.00032984,97069.0,97068.0,0.58668456]
[1738806176177,0.00032984,97069.0,97068.0,0.57668456]
[1738806176331,0.00032984,97069.0,97068.0,0.54851164]
[1738806176526,0.00032984,97069.0,97068.0,0.39851164]
[1738806177139,0.00032984,97069.0,97068.0,0.40851164]
[1738806178388,0.00043654,97069.0,97068.0,0.40851164]
[1738806178808,0.00022428,97078.0,97077.0,0.154516]
[1738806178999,0.00022428,97078.0,97077.0,0.28001965]
[1738806180081,0.0482,97134.0,97105.0,0.154471]
[1738806180348,0.00068984,97106.0,97105.0,0.28997465]
[1738806180583,0.00068984,97106.0,97105.0,0.46866941]
[1738806180841,0.00068984,97106.0,97105.0,0.5160954]
[1738806181087,0.00068984,97106.0,97105.0,0.54768635]
[1738806181666,0.00068984,97106.0,97105.0,0.49165383]
[1738806182039,0.00068984,97106.0,97105.0,0.45006288]
[1738806182269,0.00068984,97106.0,97105.0,0.46006288]
[1738806182729,0.00068984,97106.0,97105.0,0.45006288]
[1738806183401,0.00068984,97106.0,97105.0,0.46006288]
[1738806185794,0.00068984,97106.0,97105.0,0.53842608]
[1738806185993,0.00068984,97106.0,97105.0,0.39842608]
[1738806186199,0.00068984,97106.0,97105.0,0.53842608]
[1738806186440,0.00068984,97106.0,97105.0,0.38842608]
[1738806186629,0.00068984,97106.0,97105.0,0.35533785]
[1738806186779,0.04768984,97106.0,97105.0,0.10250365]
[1738806187142,0.05195463,97106.0,97105.0,0.25697465]
[1738806187521,0.04768984,97106.0,97105.0,0.27997465]
[1738806189581,0.00068984,97106.0,97105.0,0.27997465]
[1738806190534,0.00068984,97106.0,97105.0,0.53833785]
[1738806191338,0.00068984,97106.0,97105.0,0.56989925]
[1738806193824,0.0001068,97119.0,97118.0,0.154451]
[1738806194021,0.00024644,97119.0,97118.0,0.27995465]
[1738806195896,0.00024644,97119.0,97118.0,0.29012255]
[1738806197721,0.00024644,97119.0,97118.0,0.32177759]
[1738806198152,0.00024644,97119.0,97118.0,0.82177759]
[1738806201599,0.00024644,97119.0,97118.0,1.61204079]
[1738806201794,0.00024644,97119.0,97118.0,1.63204079]
[1738806202551,0.00024644,97119.0,97118.0,1.66155931]
[1738806203176,0.00024644,97119.0,97118.0,1.68195985]
[1738806203592,0.00024644,97119.0,97118.0,1.68839097]
[1738806204596,0.0483,97149.0,97148.0,0.154403]
[1738806204597,0.0002,97149.0,97148.0,0.154403]
[1738806204807,0.0002,97149.0,97148.0,0.3125908]
[1738806204982,0.00033956,97149.0,97148.0,0.31156169]
[1738806207337,0.00033956,97149.0,97148.0,0.32170997]
[1738806207692,0.00033956,97149.0,97148.0,0.47170997]
[1738806207895,0.00033956,97149.0,97148.0,0.48170997]
[1738806208916,0.0001068,97167.0,97166.0,0.154374]
[1738806209113,0.0001068,97167.0,97166.0,0.31153269]
[1738806209397,0.0001068,97167.0,97166.0,0.27987765]
[1738806209575,0.0001068,97167.0,97166.0,0.3115665]
[1738806210182,0.0001068,97167.0,97166.0,0.27987765]
[1738806210578,0.0001068,97167.0,97166.0,0.81156895]
[1738806211511,0.0001068,97167.0,97166.0,0.81157467]
[1738806212528,0.0001068,97167.0,97166.0,0.65720067]
[1738806213746,0.0001068,97167.0,97166.0,0.63420067]
[1738806213747,0.0811068,97167.0,97166.0,0.63420067]
[1738806213925,0.1306068,97167.0,97166.0,0.60250365]
[1738806214140,0.1349144,97167.0,97166.0,0.60250365]
[1738806214757,0.1306068,97167.0,97166.0,0.60250365]
[1738806215195,0.13491285,97167.0,97166.0,0.60250365]
[1738806216911,0.1306068,97167.0,97166.0,0.60250365]
[1738806217248,0.13491231,97167.0,97166.0,0.60250365]
[1738806217459,0.1306068,97167.0,97166.0,0.60250365]
[1738806217858,0.13491231,97167.0,97166.0,0.60250365]
[1738806218269,0.13491231,97167.0,97166.0,0.75687765]
[1738806218511,0.13491231,97167.0,97166.0,0.6342392]
[1738806218672,0.1306068,97167.0,97166.0,0.6342392]
[1738806219274,0.1306068,97167.0,97166.0,0.60250365]
[1738806219483,0.13491096,97167.0,97166.0,0.60250365]
[1738806219654,0.1306068,97167.0,97166.0,0.60250365]
[1738806219879,0.13491096,97167.0,97166.0,0.60250365]
[1738806220529,0.05391096,97167.0,97166.0,0.77987765]
[1738806220720,0.05391096,97167.0,97166.0,0.81160838]
[1738806220958,0.0496068,97167.0,97166.0,0.81160838]
[1738806221593,0.0496068,97167.0,97166.0,0.77987765]
[1738806221791,0.0496068,97167.0,97166.0,0.81160779]
[1738806222000,0.0496068,97167.0,97166.0,0.77987765]
[1738806222430,0.0496068,97167.0,97166.0,0.81161402]
[1738806222605,0.0496068,97167.0,97166.0,0.77987765]
[1738806222814,0.0496068,97167.0,97166.0,0.81161335]
[1738806223614,0.0496068,97167.0,97166.0,0.63423935]
[1738806223813,0.0496068,97167.0,97166.0,0.60250365]
[1738806224015,0.05391102,97167.0,97166.0,0.60250365]
[1738806225043,0.0496068,97167.0,97166.0,0.60250365]
[1738806225405,0.05391029,97167.0,97166.0,0.60250365]
[1738806230273,0.0496068,97167.0,97166.0,0.60250365]
[1738806230528,0.05391018,97167.0,97166.0,0.60250365]
[1738806232119,0.249693,97167.0,97166.0,0.60250365]
[1738806232324,0.28988318,97167.0,97166.0,0.60250365]
[1738806232539,0.43988318,97167.0,97166.0,0.5]
[1738806234635,0.44995065,97167.0,97166.0,0.5]
[1738806246849,0.44995065,97167.0,97166.0,0.4609375]
[1738806247048,0.64961417,97167.0,97166.0,0.25042004]
[1738806247289,0.44995065,97167.0,97166.0,0.25042004]
[1738806249047,0.45195065,97167.0,97166.0,0.25042004]
[1738806249397,0.44995065,97167.0,97166.0,0.25042004]
[1738806252875,0.6624543,97167.0,97166.0,0.01377244]
[1738806253092,0.4314,97150.0,97149.0,0.00022386]
[1738806253518,0.43567977,97150.0,97149.0,0.00022386]
[1738806253760,0.53818342,97150.0,97149.0,0.00022386]
[1738806253920,0.2395,97149.0,97148.0,0.38084521]
[1738806254126,0.50749429,97149.0,97148.0,0.31453085]
[1738806254320,0.5117737,97149.0,97148.0,0.27335685]
[1738806254588,0.5117737,97149.0,97148.0,0.25276985]
[1738806255556,0.5117737,97149.0,97148.0,0.24961985]
[1738806255953,0.4887737,97149.0,97148.0,0.24961985]
[1738806256159,0.4907737,97149.0,97148.0,0.24961985]
[1738806260608,0.4907737,97149.0,97148.0,0.24984434]
[1738806261008,0.5138806,97149.0,97148.0,0.03538301]
[1738806261209,0.304468,97107.0,97106.0,0.00022386]
[1738806261452,0.30871939,97107.0,97106.0,0.00036342]
[1738806263791,0.31884798,97107.0,97106.0,0.00036342]
[1738806265094,0.42135163,97107.0,97106.0,0.00036342]
[1738806265508,0.49955163,97107.0,97106.0,0.00036342]
[1738806265712,0.59169729,97107.0,97106.0,0.00036342]
[1738806266619,0.64679729,97107.0,97106.0,0.00036342]
[1738806266812,0.64679729,97107.0,97106.0,0.00136342]
[1738806267552,0.233791,97093.0,97060.0,0.08291659]
[1738806267773,0.154556,97052.0,97051.0,0.08314045]
[1738806267967,0.154556,97052.0,97051.0,0.18610966]
[1738806268169,0.0042208,97052.0,97051.0,0.10319307]
[1738806268592,0.154555,97053.0,97051.0,0.10319307]
[1738806268799,0.00422135,97052.0,97051.0,0.00068942]
[1738806270025,0.00422135,97052.0,97051.0,0.00168942]
[1738806270305,0.00422135,97052.0,97051.0,0.10419307]
[1738806271614,0.00422135,97052.0,97051.0,0.12719307]
[1738806271815,0.15,97067.0,97055.0,0.15455]
[1738806271994,0.154537,97065.0,97056.0,0.10250365]
[1738806272221,0.154539,97063.0,97056.0,0.10250365]
[1738806272656,0.00422093,97062.0,97056.0,0.10250365]
[1738806272841,0.15876093,97062.0,97056.0,0.10250365]
[1738806274410,0.00422093,97062.0,97056.0,0.10250365]